fUST/lending_fUST_20240429
["ID","MTS","AMOUNT","RATE_DAILY","PERIOD"]
[324888113,1714399838482,-154.76784823,0.00025,2]
[324888114,1714399838492,-1452.47576498,0.00025,2]
[324888115,1714399838502,-154.76784823,0.00025,2]
[324888116,1714399838511,-1835.93152535,0.00025,2]
[324888117,1714399838521,-999.0,0.00025479,2]
[324888118,1714399838530,-1205.58607994,0.0002563,2]
[324888119,1714399838540,-1613.0,0.00025647,2]
[324888120,1714399838549,-999.0,0.00026575,4]
[324888121,1714399838558,-391.10655818,0.000266,2]
[324888122,1714399838568,-2000.0,0.000266,2]
[324888123,1714399838577,-2000.0,0.000266,2]
[324888124,1714399838586,-2000.0,0.000266,2]
[324888125,1714399838596,-2000.0,0.000266,2]
[324888126,1714399838605,-1014.10706898,0.00027,3]
[324888127,1714399838614,-8527.63031331,0.00027,2]
[324888128,1714399838627,-304451.3386196,0.00027,15]
[324888129,1714399838637,-166.666666,0.00027397,2]
[324888130,1714399838647,-197.52613622,0.000274,2]
[324888131,1714399838656,-975.65412207,0.000274,2]
[324888132,1714399838666,-5421.70745288,0.000275,3]
[324888133,1714399838675,-31297.24918352,0.000275,2]
[324888134,1714399838685,-105567.88325099,0.0002763,2]
[324888135,1714399838694,-424.03324128,0.00028,2]
[324888136,1714399838704,-3754.1809699,0.00028,3]
[324888137,1714399838715,-166.666666,0.00028038,2]
[324888138,1714399838725,-1903.0,0.00028211,2]
[324888139,1714399838735,-486.43611,0.00028493,2]
[324888140,1714399838744,-250.0,0.0002863,2]
[324888141,1714399838755,-417.0,0.00028643,2]
[324888142,1714399838846,-150.0,0.00028643,2]
[324888143,1714399838857,-166.666666,0.00028679,2]
[324888144,1714399838870,-127190.66315456,0.0002877,2]
[324888145,1714399838883,-166.666666,0.00029321,2]
[324888146,1714399838893,-178000.0,0.000299,2]
[324888147,1714399838904,-166.666666,0.00029962,2]
[324888148,1714399838913,-212.50808702,0.0003,4]
[324888149,1714399838923,-188.41395292,0.0003,4]
[324888150,1714399838932,-1329.78267311,0.0003,4]
[324888151,1714399838942,-156.18766772,0.0003,4]
[324888152,1714399838953,-1000.0,0.0003,2]
[324888153,1714399838963,-235.0,0.0003,2]
[324888154,1714399838971,-1205.58607994,0.00030396,5]
[324888155,1714399838981,-166.666666,0.00030603,2]
[324888156,1714399838990,-286.72543224,0.00031,2]
[324888157,1714399838999,-2483.30132558,0.00031603,2]
[324888158,1714399839009,-44421.76678401,0.00031603,2]
[324888159,1714399839018,-958.08582903,0.00031603,2]
[324888160,1714399839028,-300.0,0.00031603,2]
[324888161,1714399839038,-781.30639903,0.00031603,2]
[324888162,1714399839047,-1192.06603489,0.00031603,14]
[324888163,1714399839057,-224.62805428,0.00031603,10]
[324888164,1714399839066,-286.55434273,0.00031603,2]
[324888166,1714399839075,-5455.20390675,0.00031603,2]
[324888168,1714399839085,-4087.68306417,0.00031603,2]
[324888169,1714399839095,-315.48630084,0.00031603,2]
[324888171,1714399839104,-281.12466351,0.00031603,2]
[324888173,1714399839113,-4076.13131485,0.00031603,2]
[324888174,1714399839126,-1022.94863432,0.00031603,10]
[324888176,1714399839136,-19196.75151336,0.00031603,2]
[324888178,1714399839146,-6632.5736523,0.00031603,5]
[324888180,1714399839155,-469.05936293,0.00031603,2]
[324888182,1714399839165,-430.70263388,0.00031603,2]
[324888183,1714399839175,-2867.67739548,0.00031603,2]
[324888185,1714399839185,-3011.72564414,0.00031603,2]
[324888187,1714399839195,-485.61924956,0.00031603,4]
[324888189,1714399839205,-1003.38381317,0.00031603,2]
[324888191,1714399839215,-977.55062889,0.00031603,2]
[324888192,1714399839224,-153.34957969,0.00031603,2]
[324888194,1714399839233,-150.0,0.0003163,2]
[324888195,1714399839242,-417.0,0.00031643,2]
[324888197,1714399839251,-638.7649893,0.00032,4]
[324888199,1714399839261,-1331.33632884,0.00032,3]
[324888200,1714399839271,-565.05492021,0.00032876,10]
[324888201,1714399839280,-235.0,0.00033,2]
[324888203,1714399839290,-235.0,0.00033,2]
[324888205,1714399839299,-466.35092847,0.00034,4]
[324888207,1714399839308,-486.43611,0.00034521,2]
[324888209,1714399839317,-1271.52239957,0.00034728,12]
[324888210,1714399839326,-26905.96443452,0.000349,2]
[324888211,1714399839335,-154.76784823,0.00035,4]
[324888212,1714399839347,-1307.89147106,0.00035,7]
[324888213,1714399839357,-154.76784823,0.00035,15]
[324888214,1714399839366,-1967.12784789,0.00035,4]
[324888215,1714399839379,-854.16964597,0.00035,2]
[324888216,1714399839388,-10285.44452255,0.00035,2]
[324888217,1714399839397,-33147.42444606,0.00035,7]
[324888218,1714399839406,-2102.2310673,0.00035,120]
[324888219,1714399839415,-1205.58607994,0.00035163,7]
[324888220,1714399839424,-300.0,0.000352,8]
[324888221,1714399839434,-1508.16249302,0.00035455,14]
[324888222,1714399839443,-153.34957969,0.00035472,13]
[324888223,1714399839453,-758.127175,0.00035616,120]
[324888225,1714399839463,-28564.37,0.00035616,3]
[324888226,1714399839473,-211.29895595,0.0003589,2]
[324888228,1714399839483,-1828.44111052,0.00036,30]
[324888230,1714399839492,-62070.07144477,0.00036,14]
[324888231,1714399839501,-235.0,0.00036,2]
[324888233,1714399839511,-235.0,0.00036,2]
[324888235,1714399839521,-300.0,0.000362,9]
[324888237,1714399839531,-256.30765386,0.0003624,2]
[324888239,1714399839540,-2926.96341876,0.00037,2]
[324888240,1714399839549,-98408.80011298,0.0003717,2]
[324888241,1714399839559,-300.0,0.000372,10]
[324888242,1714399839568,-153.0,0.00037325,2]
[324888243,1714399839577,-153.0,0.00037325,2]
[324888244,1714399839587,-153.0,0.00037325,2]
[324888245,1714399839596,-153.0,0.00037325,2]
[324888246,1714399839606,-3000.0,0.000375,32]
[324888247,1714399839616,-3000.0,0.0003751,32]
[324888248,1714399839627,-5850.0,0.0003752,32]
[324888249,1714399839637,-306.0,0.00037926,2]
[324888250,1714399839646,-153.0,0.00037926,2]
[324888251,1714399839656,-203.7672836,0.00037926,2]
[324888252,1714399839665,-417.0323399,0.00037926,2]
[324888253,1714399839675,-5009.79512819,0.00038,2]
[324888254,1714399839685,-153.0,0.00038147,2]
[324888255,1714399839695,-153.0,0.00038147,2]
[324888256,1714399839706,-153.0,0.00038147,2]
[324888257,1714399839716,-153.0,0.00038147,2]
[324888259,1714399839726,-153.0,0.00038147,2]
[324888261,1714399839735,-153.0,0.00038147,2]
[324888263,1714399839745,-153.0,0.00038147,2]
[324888265,1714399839755,-203.7672836,0.00038147,2]
[324888267,1714399839764,-153.0,0.00038147,2]
[324888268,1714399839774,-153.0,0.00038147,2]
[324888270,1714399839784,-153.0,0.00038147,2]
[324888272,1714399839794,-153.0,0.00038147,2]
[324888274,1714399839804,-153.0,0.00038147,2]
[324888276,1714399839815,-153.0,0.00038147,2]
[324888277,1714399839824,-153.0,0.00038147,2]
[324888279,1714399839835,-153.0,0.00038147,2]
[324888280,1714399839844,-153.0,0.00038147,2]
[324888282,1714399839854,-153.0,0.00038147,2]
[324888284,1714399839865,-203.7672836,0.00038147,2]
[324888286,1714399839880,-153.0,0.00038147,2]
[324888287,1714399839889,-153.0,0.00038147,2]
[324888289,1714399839898,-153.0,0.00038147,2]
[324888291,1714399839908,-153.0,0.00038147,2]
[324888293,1714399839918,-153.0,0.00038147,2]
[324888295,1714399839927,-203.7672836,0.00038147,2]
[324888297,1714399839936,-153.0,0.00038147,2]
[324888299,1714399839949,-153.0,0.00038147,2]
[324888301,1714399839959,-153.0,0.00038147,2]
[324888303,1714399839968,-153.0,0.00038147,2]
[324888305,1714399839977,-153.0,0.00038147,2]
[324888308,1714399839987,-203.7672836,0.00038147,2]
[324888309,1714399839996,-153.0,0.00038147,2]
[324888311,1714399840006,-153.0,0.00038147,2]
[324888313,1714399840015,-153.0,0.00038147,2]
[324888315,1714399840025,-153.0,0.00038147,2]
[324888318,1714399840036,-203.7672836,0.00038147,2]
[324888320,1714399840046,-153.0,0.00038147,2]
[324888322,1714399840055,-153.0,0.00038147,2]
[324888324,1714399840065,-153.0,0.00038147,2]
[324888326,1714399840075,-153.0,0.00038147,2]
[324888327,1714399840084,-203.7672836,0.00038147,2]
[324888329,1714399840096,-153.0,0.00038147,2]
[324888331,1714399840105,-153.0,0.00038147,2]
[324888333,1714399840115,-153.0,0.00038147,2]
[324888335,1714399840128,-153.0,0.00038147,2]
[324888338,1714399840139,-153.0,0.00038147,2]
[324888340,1714399840148,-153.0,0.00038147,2]
[324888342,1714399840157,-203.7672836,0.00038147,2]
[324888344,1714399840167,-153.0,0.00038147,2]
[324888346,1714399840176,-153.0,0.00038147,2]
[324888348,1714399840185,-153.0,0.00038147,2]
[324888350,1714399840195,-153.0,0.00038147,2]
[324888351,1714399840204,-203.7672836,0.00038147,2]
[324888353,1714399840213,-153.0,0.00038147,2]
[324888356,1714399840223,-153.0,0.00038147,2]
[324888357,1714399840231,-203.7672836,0.00038147,2]
[324888359,1714399840241,-153.0,0.00038147,2]
[324888361,1714399840251,-153.0,0.00038147,2]
[324888364,1714399840260,-203.7672836,0.00038147,2]
[324888366,1714399840270,-153.0,0.00038147,2]
[324888367,1714399840279,-153.0,0.00038147,2]
[324888369,1714399840288,-153.0,0.00038147,2]
[324888371,1714399840298,-203.7672836,0.00038147,2]
[324888381,1714399840383,-203.7672836,0.00038147,2]
[324888383,1714399840393,-203.7672836,0.00038147,2]
[324888385,1714399840403,-203.7672836,0.00038147,2]
[324888387,1714399840412,-203.7672836,0.00038147,2]
[324888389,1714399840421,-153.0,0.00038147,2]
[324888391,1714399840430,-153.0,0.00038147,2]
[324888393,1714399840441,-153.0,0.00038147,2]
[324888395,1714399840451,-153.0,0.00038147,2]
[324888397,1714399840460,-153.0,0.00038147,2]
[324888399,1714399840469,-153.0,0.00038147,2]
[324888401,1714399840478,-153.0,0.00038147,2]
[324888403,1714399840487,-153.0,0.00038147,2]
[324888405,1714399840496,-153.0,0.00038147,2]
[324888407,1714399840506,-153.0,0.00038147,2]
[324888409,1714399840515,-153.0,0.00038147,2]
[324888411,1714399840523,-153.0,0.00038147,2]
[324888413,1714399840532,-153.0,0.00038147,2]
[324888415,1714399840542,-153.0,0.00038147,2]
[324888417,1714399840551,-153.0,0.00038147,2]
[324888418,1714399840560,-153.0,0.00038147,2]
[324888420,1714399840570,-153.0,0.00038147,2]
[324888422,1714399840579,-153.0,0.00038147,2]
[324888424,1714399840589,-153.0,0.00038147,2]
[324888426,1714399840599,-153.0,0.00038147,2]
[324888428,1714399840608,-153.0,0.00038147,2]
[324888430,1714399840618,-153.0,0.00038147,2]
[324888432,1714399840632,-153.0,0.00038147,2]
[324888434,1714399840641,-153.0,0.00038147,2]
[324888436,1714399840651,-153.0,0.00038147,2]
[324888438,1714399840660,-153.0,0.00038147,2]
[324888440,1714399840669,-153.0,0.00038147,2]
[324888442,1714399840678,-306.0,0.00038147,2]
[324888444,1714399840687,-269.7553959,0.00038147,2]
[324888446,1714399840696,-153.0,0.00038147,2]
[324888448,1714399840705,-153.0,0.00038147,2]
[324888450,1714399840715,-153.0,0.00038147,2]
[324888452,1714399840725,-306.0,0.00038147,2]
[324888454,1714399840735,-300.0,0.000382,12]
[324888456,1714399840744,-150.75878594,0.00038334,2]
[324888458,1714399840754,-400.0,0.00038356,2]
[324888460,1714399840764,-1000.0,0.00038371,2]
[324888462,1714399840773,-588.0,0.000384,2]
[324888464,1714399840782,-1864.0255702,0.000388,30]
[324888466,1714399840792,-301.51757188,0.00038978,4]
[324888468,1714399840801,-235.0,0.00039,2]
[324888470,1714399840810,-300.0,0.000392,13]
[324888472,1714399840819,-232.10092761,0.00039397,30]
[324888474,1714399840828,-1000.0,0.000395,2]
[324888476,1714399840837,-603.03514377,0.00039633,7]
[324888478,1714399840846,-203.7672836,0.00039726,2]
[324888480,1714399840855,-203.7672836,0.00039726,2]
[324888482,1714399840870,-500.0,0.00039837,5]
[324888484,1714399840883,-153.0,0.00039863,2]
[324888486,1714399840892,-153.0,0.0003989,2]
[324888488,1714399840902,-153.0,0.0003989,2]
[324888490,1714399840911,-1000.0,0.00039892,2]
[324888492,1714399840920,-1000.0,0.00039902,2]
[324888494,1714399840930,-1205.58607994,0.00039929,9]
[324888496,1714399840940,-1000.0,0.0003994,2]
[324888497,1714399840949,-300.0,0.00039956,2]
[324888499,1714399840959,-1000.0,0.00039987,2]
[324888501,1714399840968,-153.41,0.0003999,35]
[324888503,1714399840977,-153.11,0.0004,120]
[324888505,1714399840987,-154.76784823,0.0004,2]
[324888507,1714399840997,-995.16145114,0.0004,10]
[324888509,1714399841007,-4253.66286157,0.0004,4]
[324888511,1714399841018,-7528.3609357,0.0004,2]
[324888513,1714399841027,-18374.23965721,0.0004,2]
[324888515,1714399841036,-7480.50380699,0.0004,2]
[324888517,1714399841045,-56045.77280973,0.0004,7]
[324888519,1714399841055,-2707.999999,0.0004,30]
[324888521,1714399841064,-1590.52958367,0.0004,15]
[324888523,1714399841074,-4804.0521499,0.0004,2]
[324888525,1714399841082,-359.6913144,0.0004,2]
[324888527,1714399841091,-1089.44403781,0.0004,2]
[324888529,1714399841100,-210.13266618,0.0004,120]
[324888531,1714399841110,-1000.0,0.0004003,2]
[324888533,1714399841119,-1000.0,0.00040081,2]
[324888535,1714399841132,-156.0,0.000401,35]
[324888537,1714399841141,-156.0,0.0004011,35]
[324888539,1714399841150,-1000.0,0.00040111,2]
[324888541,1714399841159,-156.0,0.0004012,35]
[324888543,1714399841170,-1000.0,0.00040124,2]
[324888545,1714399841180,-13772.3960811,0.0004013,2]
[324888547,1714399841189,-500.0,0.00040156,5]
[324888549,1714399841199,-150.5,0.0004017,35]
[324888551,1714399841209,-150.5,0.0004018,35]
[324888553,1714399841218,-167.52,0.0004019,35]
[324888555,1714399841228,-150.5,0.0004019,35]
[324888557,1714399841238,-150.5,0.0004019,35]
[324888559,1714399841247,-150.5,0.0004019,7]
[324888561,1714399841256,-160.13,0.0004019,35]
[324888563,1714399841266,-445.31033883,0.00040199,4]
[324888565,1714399841275,-1048033.75126598,0.000402,2]
[324888607,1714399841691,-1013.66372662,0.00035616,3]
[324888612,1714399841724,-2532.32408575,0.00035616,3]
[324888741,1714399843057,-16.77143837,0.00035616,3]
[324888743,1714399843068,-749.11313829,0.00035616,3]
[324889063,1714399845816,-414.523718,0.00020913,2]
[324889065,1714399845828,-435.24451888,0.00020913,2]
[324889080,1714399845955,-748.67020423,0.00020913,2]
[324890299,1714400766653,1000.0,0.000266,120]
[324890301,1714400843175,-273.80956441,0.000165,2]
[324890302,1714400843197,-189.73418607,0.00018,2]
[324890303,1714400843219,-263.424633,0.00018182,2]
[324890304,1714400843240,-314.1054928,0.00018196,2]
[324890305,1714400843266,-166.666666,0.00018213,2]
[324890306,1714400843287,-198.1512273,0.00018521,2]
[324890307,1714400843309,-154.76784823,0.00018998,2]
[324890308,1714400843331,-155.09038081,0.00019,2]
[324890309,1714400843353,-452.09478003,0.00019887,2]
[324890310,1714400843375,-239.19602788,0.00019898,2]
[324890311,1714400843396,-366.49554713,0.000199,2]
[324890312,1714400843419,-2800.09674629,0.000199,2]
[324890313,1714400848183,-5418.59044755,0.000199,2]
[324890315,1714400980729,730.61014924,0.000138,2]
[324890351,1714401032654,-263.424633,0.0001875,2]
[324890353,1714401032663,-155.16949658,0.00018896,2]
[324890355,1714401032672,-74.01837042,0.00018994,2]
[324890357,1714401032683,-6298.14911602,0.00018994,2]
[324890659,1714401038013,-154.76784823,0.00018997,2]
[324890660,1714401038023,-160.988277,0.00019178,2]
[324890661,1714401038032,-154.76784823,0.00019701,2]
[324890662,1714401038042,-705.46917456,0.00019899,2]
[324890663,1714401038127,-19490.35517204,0.00019899,2]
[324890664,1714401038136,-15163.44539538,0.000199,2]
[324890665,1714401038146,-154.76784823,0.000199,2]
[324890666,1714401038155,-5000.0,0.00019988,2]
[324890667,1714401038164,-1029.5363204,0.00019989,2]
[324890668,1714401038174,-212.26666393,0.00019997,2]
[324890669,1714401038184,-154.78330338,0.00019997,2]
[324890670,1714401038193,-154.91933674,0.00019997,2]
[324890671,1714401038202,-155.22572216,0.00019997,2]
[324890672,1714401038212,-272.67733248,0.00019997,2]
[324890673,1714401038222,-313.81237793,0.00019997,2]
[324890674,1714401038232,-239.19602788,0.00019997,2]
[324890675,1714401038241,-154.92318613,0.00019997,2]
[324890676,1714401038254,-246.76362379,0.00019997,2]
[324890677,1714401038263,-730.61014924,0.00019997,2]
[324890678,1714401038272,-522.04127739,0.00019998,2]
[324890679,1714401038283,-410200.88923209,0.00019999,2]
[324890680,1714401038294,-10481.03229319,0.0002,2]
[324890681,1714401038303,-67415.61392424,0.0002,2]
[324890682,1714401038312,-241.68429594,0.0002,2]
[324890683,1714401038323,-329.93912296,0.0002,2]
[324890684,1714401038334,-158.88283105,0.00020698,2]
[324890685,1714401038344,-2626.30439442,0.00020897,2]
[324890686,1714401038354,-285.87100414,0.00020913,2]
[324890687,1714401038370,-10000.0,0.00021918,2]
[324890688,1714401038380,-159.19819518,0.00022,2]
[324890689,1714401038390,-165.84963,0.00022466,2]
[324890690,1714401038400,-160.541666,0.00022466,2]
[324890691,1714401038409,-714.0781204,0.00023,2]
[324890692,1714401038419,-500.0,0.00024657,2]
[324890693,1714401038429,-380.0,0.00024658,2]
[324890694,1714401038439,-452.09477997,0.00024846,2]
[324890695,1714401038447,-189.4115012,0.00025,2]
[324890696,1714401038457,-5000.0,0.00025,2]
[324890697,1714401038466,-154.76784823,0.00025,2]
[324890698,1714401038477,-151.31843755,0.00026547,2]
[324890699,1714401038486,-2000.0,0.000266,2]
[324890700,1714401038495,-2000.0,0.000266,2]
[324890701,1714401038505,-756.73987356,0.000266,2]
[324890702,1714401038514,-154.76784823,0.000266,2]
[324890703,1714401038524,-1564.03593502,0.000266,2]
[324890704,1714401038533,-10596.07047515,0.000266,2]
[324890705,1714401038542,-154.76784823,0.000266,2]
[324890706,1714401038552,-2000.0,0.000266,2]
[324890707,1714401038561,-8527.63031331,0.00027,2]
[324890708,1714401038571,-166.666666,0.00027397,2]
[324890709,1714401038580,-220.92131871,0.00028,2]
[324890710,1714401038591,-166.666666,0.00028038,2]
[324890711,1714401038615,-166.666666,0.00028679,2]
[324890712,1714401038624,-166.666666,0.00029321,2]
[324890713,1714401038634,-452.09477997,0.00029805,4]
[324890714,1714401038643,-166.666666,0.00029962,2]
[324890715,1714401038652,-1329.78267311,0.0003,4]
[324890716,1714401038661,-680.03182148,0.0003,3]
[324890717,1714401038671,-236.0,0.0003,2]
[324890718,1714401038680,-166.666666,0.00030603,2]
[324890719,1714401038690,-165.84963,0.00030646,2]
[324890720,1714401038699,-160.541666,0.00030646,2]
[324890721,1714401038709,-977.55062889,0.0003151,2]
[324890722,1714401038719,-153.34957969,0.0003151,2]
[324890723,1714401038728,-23855.547814,0.0003151,2]
[324890724,1714401038738,-447.13549251,0.00032,4]
[324890725,1714401038747,-1210.30575349,0.00032,3]
[324890726,1714401038756,-200.0,0.00032,30]
[324890727,1714401038766,-1210.30575349,0.0003392,3]
[324890728,1714401038775,-466.35092847,0.00034,4]
[324890729,1714401038784,-452.09477997,0.00034764,7]
[324890730,1714401038795,-154.76784823,0.00035,15]
[324890731,1714401038806,-854.16964597,0.00035,2]
[324890732,1714401038816,-154.76784823,0.00035,4]
[324890733,1714401038837,-1307.89147106,0.00035,7]
[324890734,1714401038848,-485.61925056,0.00035259,4]
[324890735,1714401038863,-160.41577554,0.00035259,4]
[324890736,1714401038872,-158.7695784,0.00035259,4]
[324890737,1714401038882,-568.595381,0.00035616,120]
[324890738,1714401038893,-30555.53,0.00035616,3]
[324890739,1714401038903,-1071.00122426,0.0003584,7]
[324890740,1714401038912,-154.76784823,0.0003589,2]
[324890741,1714401038922,-300.0,0.000362,9]
[324890742,1714401038932,-153.0,0.00036965,2]
[324890743,1714401038941,-3512.35610251,0.00037,2]
[324890744,1714401038951,-307.814886,0.00037102,2]
[324890745,1714401038961,-407.5345672,0.00037102,2]
[324890746,1714401038971,-306.0,0.00037102,2]
[324890747,1714401038981,-300.0,0.000372,10]
[324890748,1714401038992,-7934.04214632,0.0003749,5]
[324890749,1714401039003,-500.0,0.00037499,10]
[324890750,1714401039013,-3000.0,0.000375,32]
[324890751,1714401039022,-3000.0,0.0003751,32]
[324890752,1714401039032,-3000.0,0.0003752,32]
[324890753,1714401039042,-3000.0,0.0003753,32]
[324890754,1714401039051,-3000.0,0.0003754,32]
[324890755,1714401039061,-3000.0,0.0003755,32]
[324890756,1714401039070,-3000.0,0.0003756,32]
[324890757,1714401039079,-3000.0,0.0003757,32]
[324890758,1714401039089,-3000.0,0.0003758,32]
[324890759,1714401039099,-3000.0,0.0003759,32]
[324890760,1714401039116,-3000.0,0.000376,32]
[324890761,1714401039126,-3000.0,0.0003761,32]
[324890762,1714401039136,-3150.0,0.0003762,32]
[324890763,1714401039146,-306.0,0.00037812,2]
[324890764,1714401039156,-153.0,0.00037812,2]
[324890765,1714401039166,-203.7672836,0.00037812,2]
[324890766,1714401039176,-153.0,0.00037812,2]
[324890767,1714401039186,-306.0,0.00037812,2]
[324890768,1714401039195,-153.0,0.00037812,2]
[324890769,1714401039205,-153.0,0.00037812,2]
[324890770,1714401039216,-153.0,0.00037924,2]
[324890771,1714401039228,-306.0,0.00037924,2]
[324890772,1714401039240,-153.0,0.00037924,2]
[324890773,1714401039251,-153.0,0.00037924,2]
[324890774,1714401039261,-269.7553959,0.00037924,2]
[324890775,1714401039271,-306.0,0.00037924,2]
[324890776,1714401039282,-306.0,0.00037924,2]
[324890777,1714401039292,-153.0,0.00037924,2]
[324890778,1714401039303,-153.0,0.00037924,2]
[324890779,1714401039314,-153.0,0.00037924,2]
[324890780,1714401039325,-153.0,0.00037924,2]
[324890781,1714401039335,-153.0,0.00037924,2]
[324890782,1714401039345,-153.0,0.00037924,2]
[324890783,1714401039356,-153.0,0.00037924,2]
[324890784,1714401039374,-153.0,0.00037924,2]
[324890785,1714401039385,-153.0,0.00037924,2]
[324890786,1714401039395,-153.0,0.00037924,2]
[324890787,1714401039406,-153.0,0.00037924,2]
[324890788,1714401039416,-153.0,0.00037924,2]
[324890789,1714401039426,-153.0,0.00037924,2]
[324890790,1714401039545,-153.0,0.00037924,2]
[324890791,1714401039556,-153.0,0.00037924,2]
[324890792,1714401039566,-153.0,0.00037924,2]
[324890793,1714401039576,-153.0,0.00037924,2]
[324890794,1714401039585,-153.0,0.00037924,2]
[324890795,1714401039595,-153.0,0.00037924,2]
[324890796,1714401039604,-153.0,0.00037924,2]
[324890798,1714401039618,-153.0,0.00037924,2]
[324890799,1714401039627,-153.0,0.00037924,2]
[324890800,1714401039636,-153.0,0.00037924,2]
[324890801,1714401039646,-153.0,0.00037924,2]
[324890802,1714401039655,-203.7672836,0.00037924,2]
[324890803,1714401039665,-153.0,0.00037924,2]
[324890804,1714401039675,-203.7672836,0.00037924,2]
[324890805,1714401039684,-203.7672836,0.00037924,2]
[324890806,1714401039694,-203.7672836,0.00037924,2]
[324890807,1714401039703,-203.7672836,0.00037924,2]
[324890808,1714401039713,-306.0,0.00037924,2]
[324890809,1714401039722,-153.0,0.00037924,2]
[324890810,1714401039731,-203.7672836,0.00037924,2]
[324890811,1714401039742,-205.0,0.00038,60]
[324890812,1714401039752,-154.76784823,0.00038172,4]
[324890813,1714401039762,-928.56039633,0.00038181,4]
[324890814,1714401039771,-300.0,0.000382,12]
[324890816,1714401039781,-999.0,0.00038356,2]
[324890818,1714401039791,-402.56689138,0.00038356,2]
[324890820,1714401039800,-165.84963,0.00038826,2]
[324890821,1714401039810,-160.541666,0.00038826,2]
[324890822,1714401039819,-153.0,0.00039068,2]
[324890823,1714401039828,-153.0,0.00039068,2]
[324890824,1714401039838,-153.0,0.00039068,2]
[324890825,1714401039847,-153.0,0.00039068,2]
[324890826,1714401039858,-150.75878594,0.00039155,2]
[324890827,1714401039867,-300.0,0.000392,13]
[324890828,1714401039876,-232.10092761,0.00039397,30]
[324890829,1714401039885,-588.0,0.000394,2]
[324890830,1714401039894,-452.09477997,0.00039723,9]
[324890831,1714401039904,-153.0,0.00039726,2]
[324890832,1714401039913,-153.0,0.00039726,2]
[324890833,1714401039922,-153.0,0.00039726,2]
[324890834,1714401039931,-153.0,0.00039726,2]
[324890835,1714401039941,-301.51757188,0.00039813,4]
[324890836,1714401039951,-306.0,0.0003989,2]
[324890837,1714401039960,-153.0,0.0003989,2]
[324890838,1714401039970,-203.7672836,0.0003989,2]
[324890839,1714401039980,-153.0,0.0003989,2]
[324890840,1714401039989,-203.7672836,0.0003989,2]
[324890841,1714401039998,-153.0,0.0003989,2]
[324890842,1714401040008,-153.0,0.0003989,2]
[324890843,1714401040018,-37079.14741565,0.000399,30]
[324890844,1714401040028,-300.0,0.00039941,2]
[324890845,1714401040037,-1000.0,0.00039945,2]
[324890846,1714401040046,-202.6081951,0.0004,2]
[324890847,1714401040056,-4253.66286157,0.0004,4]
[324890848,1714401040065,-995.16145114,0.0004,10]
[324890849,1714401040074,-153.1,0.0004,120]
[324890850,1714401040084,-311.23535548,0.0004,2]
[324890851,1714401040093,-1000.0,0.00040001,2]
[324890852,1714401040103,-1000.0,0.00040058,2]
[324890853,1714401040116,-1000.0,0.00040082,2]
[324890854,1714401040125,-1000.0,0.00040101,2]
[324890855,1714401040135,-1000.0,0.00040107,2]
[324890856,1714401040144,-1000.0,0.00040115,2]
[324890857,1714401040153,-500.0,0.00040156,5]
[324890858,1714401040163,-1000.0,0.00040166,2]
[324890859,1714401040172,-1000.0,0.00040181,2]
[324890860,1714401040182,-311.51358233,0.00040182,4]
[324890861,1714401040191,-154.79876161,0.00040184,4]
[324890862,1714401040200,-689.57545868,0.00040184,4]
[324890863,1714401040209,-149.999999,0.0004019,3]
[324890864,1714401040219,-154.79876161,0.00040191,4]